fUSD/lending_fUSD_20250823
["ID","MTS","AMOUNT","RATE_DAILY","PERIOD"]
[380960769,1755912787265,-2000.0,0.000173,2]
[380960770,1755912787275,-1231.93713143,0.00017305,2]
[380960771,1755912787284,-1500.0,0.00017305,2]
[380960772,1755912787294,-1500.0,0.00017305,2]
[380960773,1755912787304,-1683.0,0.00017312,2]
[380960774,1755912787314,-1500.0,0.00017319,2]
[380960775,1755912787323,-1500.0,0.00017321,2]
[380960776,1755912787333,-1000.0,0.00017332,2]
[380960777,1755912787343,-1000.0,0.00017391,2]
[380960778,1755912787353,-90000.0,0.000174,5]
[380960779,1755912787363,-869.26,0.00017422,2]
[380960780,1755912787372,-500.0,0.00017423,2]
[380960781,1755912787382,-1000.0,0.00017451,2]
[380960782,1755912787391,-500.0,0.00017452,2]
[380960783,1755912787402,-1215.22799473,0.00017453,2]
[380960784,1755912787413,-604.11407964,0.00017455,2]
[380960785,1755912787423,-1500.0,0.00017455,2]
[380960786,1755912787432,-1500.0,0.00017455,2]
[380960787,1755912787442,-415.72829341,0.00017455,2]
[380960788,1755912787452,-1500.0,0.00017455,2]
[380960789,1755912787462,-1500.0,0.00017455,2]
[380960790,1755912787471,-300.0,0.00017496,2]
[380960791,1755912787481,-1528.35,0.00017496,2]
[380960792,1755912787491,-173.67,0.00017496,2]
[380960793,1755912787501,-317.14,0.00017496,2]
[380960794,1755912787512,-408.42,0.00017496,2]
[380960795,1755912787522,-20000.0,0.000175,2]
[380960796,1755912787531,-1000.0,0.0001751,2]
[380960797,1755912787540,-549.67,0.00017516,2]
[380960798,1755912787550,-1000.0,0.00017527,2]
[380960799,1755912787559,-300.0,0.00017533,2]
[380960800,1755912787569,-300.0,0.00017533,2]
[380960801,1755912787578,-300.0,0.00017533,2]
[380960802,1755912787588,-300.0,0.00017533,2]
[380960803,1755912787598,-300.0,0.00017533,2]
[380960804,1755912787607,-300.0,0.00017533,2]
[380960805,1755912787617,-300.0,0.00017533,2]
[380960806,1755912787626,-300.0,0.00017533,2]
[380960807,1755912787635,-733.0,0.00017534,2]
[380960808,1755912787645,-500.0,0.00017534,2]
[380960809,1755912787655,-1367.0,0.00017534,2]
[380960810,1755912787664,-446.71622993,0.00017534,2]
[380960811,1755912787674,-500.0,0.00017534,2]
[380960812,1755912787684,-500.0,0.00017534,2]
[380960813,1755912787693,-438.96218523,0.00017534,2]
[380960814,1755912787702,-2066.0,0.00017534,2]
[380960815,1755912787712,-284.84137361,0.00017534,2]
[380960816,1755912787722,-500.0,0.00017534,2]
[380960817,1755912787731,-1471.92,0.00017534,2]
[380960818,1755912787741,-404.24,0.00017534,2]
[380960819,1755912787750,-400.0,0.00017534,2]
[380960820,1755912787760,-400.0,0.00017534,2]
[380960821,1755912787771,-957.1,0.00017534,2]
[380960822,1755912787781,-500.5,0.00017534,2]
[380960823,1755912787790,-400.0,0.00017534,2]
[380960824,1755912787800,-630.13,0.00017534,2]
[380960825,1755912787810,-484.29,0.00017534,2]
[380960826,1755912787819,-691.2,0.00017534,2]
[380960827,1755912787829,-400.0,0.00017534,2]
[380960828,1755912787839,-564.0,0.00017534,2]
[380960829,1755912787848,-922.66,0.00017534,2]
[380960830,1755912787858,-1309.75,0.00017534,2]
[380960831,1755912787868,-400.0,0.00017534,2]
[380960832,1755912787877,-410.64,0.00017534,2]
[380960833,1755912787888,-445.76137793,0.00017534,2]
[380960834,1755912787897,-450.21281445,0.00017534,2]
[380960835,1755912787907,-400.0,0.00017534,2]
[380960836,1755912787916,-400.0,0.00017534,2]
[380960837,1755912787925,-814.35,0.00017534,2]
[380960838,1755912787935,-703.72,0.00017534,2]
[380960839,1755912787944,-400.0,0.00017534,2]
[380960840,1755912787954,-400.0,0.00017534,2]
[380960841,1755912787963,-400.0,0.00017534,2]
[380960842,1755912787972,-400.0,0.00017534,2]
[380960843,1755912787982,-416.84,0.00017534,2]
[380960844,1755912787991,-552.81,0.00017534,2]
[380960845,1755912788000,-565.22,0.00017534,2]
[380960846,1755912788011,-457.37,0.00017534,2]
[380960847,1755912788021,-400.0,0.00017534,2]
[380960848,1755912788031,-400.0,0.00017534,2]
[380960849,1755912788040,-454.18,0.00017534,2]
[380960850,1755912788050,-408.41,0.00017534,2]
[380960851,1755912788059,-429.23,0.00017534,2]
[380960852,1755912788069,-400.0,0.00017534,2]
[380960853,1755912788078,-400.0,0.00017534,2]
[380960854,1755912788087,-400.0,0.00017534,2]
[380960855,1755912788097,-400.0,0.00017534,2]
[380960856,1755912788106,-582.37,0.00017534,2]
[380960857,1755912788115,-400.0,0.00017534,2]
[380960858,1755912788124,-400.0,0.00017534,2]
[380960859,1755912788134,-400.0,0.00017534,2]
[380960860,1755912788144,-759.88,0.00017534,2]
[380960861,1755912788153,-400.0,0.00017534,2]
[380960862,1755912788162,-591.39,0.00017534,2]
[380960863,1755912788172,-413.97,0.00017534,2]
[380960864,1755912788181,-649.74,0.00017534,2]
[380960865,1755912788190,-446.38,0.00017534,2]
[380960866,1755912788200,-506.47,0.00017534,2]
[380960867,1755912788209,-715.02,0.00017534,2]
[380960868,1755912788218,-400.0,0.00017534,2]
[380960869,1755912788227,-537.25,0.00017534,2]
[380960870,1755912788237,-400.0,0.00017534,2]
[380960871,1755912788246,-512.45,0.00017534,2]
[380960872,1755912788361,-527.41,0.00017534,2]
[380960873,1755912788370,-400.0,0.00017534,2]
[380960874,1755912788380,-521.1,0.00017534,2]
[380960875,1755912788389,-400.0,0.00017534,2]
[380960876,1755912788398,-446.92,0.00017534,2]
[380960877,1755912788411,-449.44,0.00017534,2]
[380960878,1755912788420,-675.1,0.00017534,2]
[380960879,1755912788429,-400.0,0.00017534,2]
[380960880,1755912788439,-328.92565305,0.00017534,2]
[380960881,1755912788450,-609.3,0.00017534,2]
[380960882,1755912788459,-654.03,0.00017534,2]
[380960883,1755912788468,-400.0,0.00017534,2]
[380960884,1755912788477,-400.0,0.00017534,2]
[380960885,1755912788488,-661.96,0.00017534,2]
[380960886,1755912788497,-568.98,0.00017534,2]
[380960887,1755912788507,-400.0,0.00017534,2]
[380960888,1755912788517,-400.0,0.00017534,2]
[380960889,1755912788526,-709.86,0.00017534,2]
[380960890,1755912788535,-812.84,0.00017534,2]
[380960891,1755912788544,-437.4,0.00017534,2]
[380960892,1755912788553,-586.38,0.00017534,2]
[380960893,1755912788562,-442.27,0.00017534,2]
[380960894,1755912788571,-562.61,0.00017534,2]
[380960895,1755912788581,-400.0,0.00017534,2]
[380960896,1755912788590,-400.0,0.00017534,2]
[380960897,1755912788600,-845.65,0.00017534,2]
[380960898,1755912788609,-441.24,0.00017534,2]
[380960899,1755912788618,-529.98,0.00017534,2]
[380960900,1755912788627,-506.59,0.00017534,2]
[380960901,1755912788637,-400.0,0.00017534,2]
[380960902,1755912788646,-570.39,0.00017534,2]
[380960903,1755912788655,-400.0,0.00017534,2]
[380960904,1755912788664,-421.77,0.00017534,2]
[380960905,1755912788674,-400.0,0.00017534,2]
[380960906,1755912788683,-400.0,0.00017534,2]
[380960907,1755912788692,-400.0,0.00017534,2]
[380960908,1755912788701,-456.11800908,0.00017534,2]
[380960909,1755912788710,-464.48,0.00017534,2]
[380960910,1755912788719,-415.36,0.00017534,2]
[380960911,1755912788728,-530.98,0.00017534,2]
[380960912,1755912788737,-331.09071705,0.00017534,2]
[380960913,1755912788746,-516.79,0.00017534,2]
[380960914,1755912788755,-512.43,0.00017534,2]
[380960915,1755912788765,-400.0,0.00017534,2]
[380960916,1755912788774,-400.0,0.00017534,2]
[380960917,1755912788784,-400.0,0.00017534,2]
[380960918,1755912788793,-400.0,0.00017534,2]
[380960919,1755912788802,-409.44,0.00017534,2]
[380960920,1755912788811,-400.0,0.00017534,2]
[380960921,1755912788820,-400.0,0.00017534,2]
[380960922,1755912788829,-499.57,0.00017534,2]
[380960923,1755912788838,-577.94,0.00017534,2]
[380960924,1755912788848,-400.0,0.00017534,2]
[380960925,1755912788857,-400.0,0.00017534,2]
[380960926,1755912788866,-476.9,0.00017534,2]
[380960927,1755912788875,-637.7,0.00017534,2]
[380960928,1755912788886,-423.83,0.00017534,2]
[380960929,1755912788896,-400.0,0.00017534,2]
[380960930,1755912788905,-459.29,0.00017534,2]
[380960931,1755912788914,-873.47,0.00017534,2]
[380960932,1755912788923,-571.62,0.00017534,2]
[380960933,1755912788932,-409.95,0.00017534,2]
[380960934,1755912788942,-1704.41,0.00017534,2]
[380960935,1755912788951,-400.0,0.00017534,2]
[380960936,1755912788960,-549.98,0.00017534,2]
[380960937,1755912788970,-400.0,0.00017534,2]
[380960938,1755912788980,-400.0,0.00017534,2]
[380960939,1755912788989,-531.47,0.00017534,2]
[380960940,1755912788999,-400.0,0.00017534,2]
[380960941,1755912789008,-456.18,0.00017534,2]
[380960942,1755912789017,-439.34074972,0.00017534,2]
[380960943,1755912789026,-890.29,0.00017534,2]
[380960944,1755912789035,-406.1,0.00017534,2]
[380960945,1755912789046,-400.0,0.00017534,2]
[380960946,1755912789057,-400.0,0.00017534,2]
[380960947,1755912789067,-421.32,0.00017534,2]
[380960948,1755912789078,-478.43,0.00017534,2]
[380960949,1755912789087,-400.0,0.00017534,2]
[380960950,1755912789097,-487.04,0.00017534,2]
[380960951,1755912789106,-595.85,0.00017534,2]
[380960952,1755912789117,-510.81,0.00017534,2]
[380960953,1755912789127,-542.43,0.00017534,2]
[380960954,1755912789136,-400.0,0.00017534,2]
[380960955,1755912789147,-451.04,0.00017534,2]
[380960956,1755912789155,-477.02,0.00017534,2]
[380960957,1755912789165,-667.8,0.00017534,2]
[380960958,1755912789174,-396.78,0.00017534,2]
[380960959,1755912789184,-400.0,0.00017534,2]
[380960960,1755912789193,-754.76,0.00017534,2]
[380960961,1755912789202,-400.0,0.00017534,2]
[380960962,1755912789211,-1030.1,0.00017534,2]
[380960963,1755912789221,-510.89,0.00017534,2]
[380960964,1755912789230,-436.99,0.00017534,2]
[380960965,1755912789239,-657.25,0.00017534,2]
[380960966,1755912789248,-400.0,0.00017534,2]
[380960967,1755912789257,-400.0,0.00017534,2]
[380960968,1755912789268,-400.0,0.00017534,2]
[380960969,1755912789277,-417.45,0.00017534,2]
[380960970,1755912789286,-1067.81,0.00017534,2]
[380960971,1755912789295,-400.0,0.00017534,2]
[380960972,1755912789305,-400.0,0.00017534,2]
[380960973,1755912789315,-578.42,0.00017534,2]
[380960974,1755912789324,-786.01,0.00017534,2]
[380960975,1755912789339,-1145.67,0.00017534,2]
[380960976,1755912789353,-624.95,0.00017534,2]
[380960977,1755912789364,-400.0,0.00017534,2]
[380960978,1755912789373,-439.98,0.00017534,2]
[380960979,1755912789387,-400.0,0.00017534,2]
[380960980,1755912789396,-734.24,0.00017534,2]
[380960981,1755912789408,-716.27,0.00017534,2]
[380960982,1755912789417,-400.0,0.00017534,2]
[380960983,1755912789426,-400.0,0.00017534,2]
[380960984,1755912789435,-677.21,0.00017534,2]
[380960985,1755912789444,-400.0,0.00017534,2]
[380960986,1755912789453,-400.0,0.00017534,2]
[380960987,1755912789462,-503.77,0.00017534,2]
[380960988,1755912789471,-651.98,0.00017534,2]
[380960989,1755912789480,-831.56,0.00017534,2]
[380960990,1755912789489,-742.35,0.00017534,2]
[380960991,1755912789498,-541.87,0.00017534,2]
[380960992,1755912789507,-278.57476039,0.00017534,2]
[380960993,1755912789516,-400.0,0.00017534,2]
[380960994,1755912789525,-400.0,0.00017534,2]
[380960995,1755912789535,-462.17,0.00017534,2]
[380960996,1755912789544,-438.76438067,0.00017534,2]
[380960997,1755912789554,-400.0,0.00017534,2]
[380960998,1755912789563,-422.39,0.00017534,2]
[380960999,1755912789572,-400.0,0.00017534,2]
[380961000,1755912789581,-535.7,0.00017534,2]
[380961001,1755912789590,-601.7,0.00017534,2]
[380961002,1755912789599,-598.88,0.00017534,2]
[380961003,1755912789608,-729.0,0.00017534,2]
[380961004,1755912789618,-400.0,0.00017534,2]
[380961005,1755912789627,-400.0,0.00017534,2]
[380961006,1755912789636,-482.06,0.00017534,2]
[380961007,1755912789646,-648.16,0.00017534,2]
[380961008,1755912789655,-400.0,0.00017534,2]
[380961009,1755912789664,-400.0,0.00017534,2]
[380961010,1755912789674,-560.98,0.00017534,2]
[380961011,1755912789683,-581.45,0.00017534,2]
[380961012,1755912789693,-485.12,0.00017534,2]
[380961013,1755912789702,-400.0,0.00017534,2]
[380961014,1755912789712,-607.66,0.00017534,2]
[380961015,1755912789721,-400.0,0.00017534,2]
[380961016,1755912789731,-483.72,0.00017534,2]
[380961017,1755912789741,-506.32,0.00017534,2]
[380961018,1755912789751,-657.0,0.00017534,2]
[380961019,1755912789761,-460.21,0.00017534,2]
[380961020,1755912789771,-664.59,0.00017534,2]
[380961021,1755912789781,-463.13,0.00017534,2]
[380961022,1755912789790,-518.18,0.00017534,2]
[380961023,1755912789799,-548.04,0.00017534,2]
[380961024,1755912789808,-623.23,0.00017534,2]
[380961025,1755912789817,-490.94,0.00017534,2]
[380961026,1755912789826,-204.24,0.00017534,2]
[380961027,1755912789835,-407.86,0.00017534,2]
[380961028,1755912789844,-538.71,0.00017534,2]
[380961029,1755912789854,-492.11,0.00017534,2]
[380961030,1755912789863,-585.32,0.00017534,2]
[380961031,1755912789873,-704.8,0.00017534,2]
[380961032,1755912789883,-419.51,0.00017534,2]
[380961033,1755912789892,-536.25,0.00017534,2]
[380961034,1755912789902,-400.0,0.00017534,2]
[380961035,1755912789911,-416.08,0.00017534,2]
[380961036,1755912789921,-685.75,0.00017534,2]
[380961037,1755912789930,-400.0,0.00017534,2]
[380961038,1755912789939,-1265.94,0.00017534,2]
[380961039,1755912789949,-400.0,0.00017534,2]
[380961040,1755912789958,-475.58,0.00017534,2]
[380961041,1755912789967,-400.0,0.00017534,2]
[380961042,1755912789976,-400.0,0.00017534,2]
[380961043,1755912789985,-433.85,0.00017534,2]
[380961044,1755912789994,-400.0,0.00017534,2]
[380961045,1755912790004,-400.0,0.00017534,2]
[380961046,1755912790013,-428.36,0.00017534,2]
[380961047,1755912790023,-543.91,0.00017534,2]
[380961048,1755912790032,-427.61,0.00017534,2]
[380961049,1755912790041,-400.0,0.00017534,2]
[380961050,1755912790050,-763.66,0.00017534,2]
[380961051,1755912790059,-400.0,0.00017534,2]
[380961052,1755912790068,-400.0,0.00017534,2]
[380961053,1755912790078,-400.0,0.00017534,2]
[380961054,1755912790087,-400.0,0.00017534,2]
[380961055,1755912790096,-482.08,0.00017534,2]
[380961056,1755912790105,-552.38,0.00017534,2]
[380961057,1755912790115,-793.95,0.00017534,2]
[380961058,1755912790124,-400.0,0.00017534,2]
[380961059,1755912790133,-400.0,0.00017534,2]
[380961060,1755912790143,-476.99,0.00017534,2]
[380961061,1755912790152,-772.08,0.00017534,2]
[380961062,1755912790162,-607.86,0.00017534,2]
[380961063,1755912790171,-400.0,0.00017534,2]
[380961064,1755912790181,-577.68,0.00017534,2]
[380961065,1755912790190,-446.17,0.00017534,2]
[380961066,1755912790199,-499.75,0.00017534,2]
[380961067,1755912790208,-543.86,0.00017534,2]
[380961068,1755912790218,-707.33,0.00017534,2]
[380961069,1755912790227,-475.34,0.00017534,2]
[380961070,1755912790236,-602.1,0.00017534,2]
[380961071,1755912790245,-496.62,0.00017534,2]
[380961072,1755912790255,-480.32,0.00017534,2]
[380961073,1755912790265,-752.86,0.00017534,2]
[380961074,1755912790274,-400.0,0.00017534,2]
[380961075,1755912790284,-400.0,0.00017534,2]
[380961076,1755912790294,-400.0,0.00017534,2]
[380961077,1755912790305,-633.62,0.00017534,2]
[380961078,1755912790315,-400.0,0.00017534,2]
[380961079,1755912790324,-560.58,0.00017534,2]
[380961080,1755912790333,-400.0,0.00017534,2]
[380961081,1755912790342,-400.0,0.00017534,2]
[380961082,1755912790352,-614.22,0.00017534,2]
[380961083,1755912790361,-428.79,0.00017534,2]
[380961084,1755912790371,-416.01,0.00017534,2]
[380961085,1755912790381,-425.3,0.00017534,2]
[380961086,1755912790390,-400.0,0.00017534,2]
[380961087,1755912790400,-508.68,0.00017534,2]
[380961088,1755912790412,-463.91,0.00017534,2]
[380961089,1755912790421,-193.17723,0.00017534,2]
[380961090,1755912790430,-470.91,0.00017534,2]
[380961091,1755912790439,-418.5,0.00017534,2]
[380961092,1755912790450,-535.36,0.00017534,2]
[380961093,1755912790459,-400.0,0.00017534,2]
[380961094,1755912790469,-400.0,0.00017534,2]
[380961095,1755912790479,-747.8,0.00017534,2]
[380961096,1755912790489,-400.0,0.00017534,2]
[380961097,1755912790498,-433.94,0.00017534,2]
[380961098,1755912790507,-400.0,0.00017534,2]
[380961099,1755912790518,-400.0,0.00017534,2]
[380961100,1755912790528,-400.0,0.00017534,2]
[380961101,1755912790537,-400.0,0.00017534,2]
[380961102,1755912790546,-472.48,0.00017534,2]
[380961103,1755912790556,-264.12581738,0.00017534,2]
[380961104,1755912790565,-855.010025,0.00017534,2]
[380961105,1755912790575,-400.0,0.00017534,2]
[380961106,1755912790584,-400.0,0.00017534,2]
[380961107,1755912790594,-631.75,0.00017534,2]
[380961108,1755912790603,-479.25,0.00017534,2]
[380961109,1755912790613,-400.0,0.00017534,2]
[380961110,1755912790622,-737.35,0.00017534,2]
[380961111,1755912790631,-473.06,0.00017534,2]
[380961112,1755912790640,-400.0,0.00017534,2]
[380961113,1755912790650,-400.0,0.00017534,2]
[380961114,1755912790660,-464.53,0.00017534,2]
[380961115,1755912790669,-400.0,0.00017534,2]
[380961116,1755912790679,-451.38,0.00017534,2]
[380961117,1755912790688,-605.41,0.00017534,2]
[380961118,1755912790698,-763.68,0.00017534,2]
[380961119,1755912790707,-400.0,0.00017534,2]
[380961120,1755912790716,-437.52,0.00017534,2]
[380961121,1755912790725,-496.31,0.00017534,2]
[380961122,1755912790735,-400.0,0.00017534,2]
[380961123,1755912790744,-400.0,0.00017534,2]
[380961124,1755912790753,-517.63,0.00017534,2]
[380961125,1755912790763,-1076.1,0.00017534,2]
[380961126,1755912790773,-400.0,0.00017534,2]
[380961127,1755912790782,-531.82,0.00017534,2]
[380961128,1755912790792,-400.0,0.00017534,2]
[380961129,1755912790802,-400.0,0.00017534,2]
[380961130,1755912790811,-599.57,0.00017534,2]
[380961131,1755912790821,-400.0,0.00017534,2]
[380961132,1755912790830,-538.24,0.00017534,2]
[380961133,1755912790839,-578.64,0.00017534,2]
[380961134,1755912790848,-481.87,0.00017534,2]
[380961135,1755912790857,-876.45,0.00017534,2]
[380961136,1755912790867,-596.46,0.00017534,2]
[380961137,1755912790877,-400.0,0.00017534,2]
[380961138,1755912790886,-750.69,0.00017534,2]
[380961139,1755912790896,-400.0,0.00017534,2]
[380961140,1755912790906,-483.91,0.00017534,2]
[380961141,1755912790915,-429.94,0.00017534,2]
[380961142,1755912790924,-2560.03,0.00017534,2]
[380961143,1755912790934,-583.44,0.00017534,2]
[380961144,1755912790943,-400.0,0.00017534,2]
[380961145,1755912790952,-400.0,0.00017534,2]
[380961146,1755912790961,-412.65,0.00017534,2]
[380961147,1755912790970,-511.98,0.00017534,2]
[380961148,1755912790980,-714.55,0.00017534,2]
[380961149,1755912790989,-466.47,0.00017534,2]
[380961150,1755912790998,-400.0,0.00017534,2]
[380961151,1755912791008,-400.0,0.00017534,2]
[380961152,1755912791018,-483.0,0.00017534,2]
[380961153,1755912791027,-789.4,0.00017534,2]
[380961154,1755912791037,-638.96,0.00017534,2]
[380961155,1755912791046,-626.45,0.00017534,2]
[380961156,1755912791056,-411.07,0.00017534,2]
[380961157,1755912791066,-499.38748024,0.00017534,2]
[380961158,1755912791075,-459.86,0.00017534,2]
[380961159,1755912791085,-590.56,0.00017534,2]
[380961160,1755912791095,-7170.55,0.00017534,2]
[380961161,1755912791104,-798.6,0.00017534,2]
[380961162,1755912791113,-489.74,0.00017534,2]
[380961163,1755912791123,-755.36,0.00017534,2]
[380961164,1755912791132,-568.83,0.00017534,2]
[380961165,1755912791141,-414.4,0.00017534,2]
[380961166,1755912791151,-400.0,0.00017534,2]
[380961167,1755912791160,-556.35,0.00017534,2]
[380961168,1755912791170,-522.88,0.00017534,2]
[380961169,1755912791179,-2114.53,0.00017534,2]
[380961170,1755912791188,-301.93138179,0.00017534,2]
[380961171,1755912791198,-400.0,0.00017534,2]
[380961172,1755912791208,-400.0,0.00017534,2]
[380961173,1755912791218,-2594.59,0.00017534,2]
[380961174,1755912791229,-446.5,0.00017534,2]
[380961175,1755912791239,-529.92,0.00017534,2]
[380961176,1755912791248,-705.67,0.00017534,2]
[380961177,1755912791258,-400.0,0.00017534,2]
[380961178,1755912791268,-896.87,0.00017534,2]
[380961179,1755912791278,-400.0,0.00017534,2]
[380961180,1755912791289,-1094.77,0.00017534,2]
[380961181,1755912791298,-741.74,0.00017534,2]
[380961182,1755912791308,-400.0,0.00017534,2]
[380961183,1755912791318,-869.76,0.00017534,2]
[380961184,1755912791327,-418.69,0.00017534,2]
[380961185,1755912791337,-437.77,0.00017534,2]
[380961186,1755912791347,-562.13,0.00017534,2]
[380961187,1755912791356,-1048.91,0.00017534,2]
[380961188,1755912791366,-541.27,0.00017534,2]
[380961189,1755912791376,-723.99,0.00017534,2]
[380961190,1755912791386,-400.0,0.00017534,2]
[380961191,1755912791395,-963.36,0.00017534,2]
[380961192,1755912791407,-685.08,0.00017534,2]
[380961193,1755912791417,-614.11,0.00017534,2]
[380961194,1755912791426,-4903.23,0.00017534,2]
[380961195,1755912791436,-400.0,0.00017534,2]
[380961196,1755912791445,-400.0,0.00017534,2]
[380961197,1755912791454,-530.85,0.00017534,2]
[380961198,1755912791463,-956.53,0.00017534,2]
[380961199,1755912791472,-508.77,0.00017534,2]
[380961200,1755912791481,-400.0,0.00017534,2]
[380961201,1755912791490,-400.0,0.00017534,2]
[380961202,1755912791500,-690.94,0.00017534,2]
[380961203,1755912791509,-781.78,0.00017534,2]
[380961204,1755912791519,-166.839125,0.00017534,2]
[380961205,1755912791528,-407.82,0.00017534,2]
[380961206,1755912791537,-516.0,0.00017534,2]
[380961207,1755912791547,-400.0,0.00017534,2]
[380961208,1755912791556,-573.49,0.00017534,2]
[380961209,1755912791566,-400.0,0.00017534,2]
[380961210,1755912791575,-548.91,0.00017534,2]
[380961211,1755912791584,-400.0,0.00017534,2]
[380961212,1755912791593,-2566.25,0.00017534,2]
[380961213,1755912791602,-468.96,0.00017534,2]
[380961214,1755912791611,-947.84,0.00017534,2]
[380961215,1755912791621,-1053.52,0.00017534,2]
[380961216,1755912791630,-400.0,0.00017534,2]
[380961217,1755912791639,-659.68,0.00017534,2]
[380961218,1755912791648,-691.7,0.00017534,2]
[380961219,1755912791657,-1155.0,0.00017534,2]
[380961220,1755912791666,-557.81,0.00017534,2]
[380961221,1755912791675,-1327.17,0.00017534,2]
[380961222,1755912791684,-719.87,0.00017534,2]
[380961223,1755912791693,-621.05,0.00017534,2]
[380961224,1755912791702,-532.88,0.00017534,2]
[380961225,1755912791712,-400.0,0.00017534,2]
[380961226,1755912791721,-482.24,0.00017534,2]
[380961227,1755912791731,-825.64,0.00017534,2]
[380961228,1755912791741,-786.36,0.00017534,2]
[380961229,1755912791751,-811.77,0.00017534,2]
[380961230,1755912791760,-508.4,0.00017534,2]
[380961231,1755912791770,-400.0,0.00017534,2]
[380961232,1755912791780,-448.05,0.00017534,2]
[380961233,1755912791789,-471.12,0.00017534,2]
[380961234,1755912791799,-522.09,0.00017534,2]
[380961235,1755912791808,-478.08,0.00017534,2]
[380961236,1755912791818,-400.0,0.00017534,2]
[380961237,1755912791828,-1160.25,0.00017534,2]
[380961238,1755912791838,-413.45,0.00017534,2]
[380961239,1755912791849,-400.0,0.00017534,2]
[380961240,1755912791859,-400.01,0.00017534,2]
[380961241,1755912791870,-1658.24,0.00017534,2]
[380961242,1755912791880,-876.0,0.00017534,2]
[380961243,1755912791892,-928.99,0.00017534,2]
[380961244,1755912791902,-1082.57,0.00017534,2]
[380961245,1755912791912,-599.68,0.00017534,2]
[380961246,1755912791923,-400.0,0.00017534,2]
[380961247,1755912791934,-576.13,0.00017534,2]
[380961248,1755912791943,-581.91,0.00017534,2]
[380961249,1755912791953,-535.34,0.00017534,2]
[380961250,1755912791963,-704.93,0.00017534,2]
[380961251,1755912791973,-629.77,0.00017534,2]
[380961252,1755912791982,-909.17,0.00017534,2]
[380961253,1755912791992,-757.81,0.00017534,2]
[380961254,1755912792001,-400.0,0.00017534,2]
[380961255,1755912792010,-458.74,0.00017534,2]
[380961256,1755912792020,-677.9,0.00017534,2]
[380961257,1755912792029,-808.82,0.00017534,2]
[380961258,1755912792039,-1628.12,0.00017534,2]
[380961259,1755912792048,-400.0,0.00017534,2]
[380961260,1755912792058,-556.37,0.00017534,2]
[380961261,1755912792067,-412.49,0.00017534,2]
[380961262,1755912792076,-562.56,0.00017534,2]
[380961263,1755912792086,-554.4,0.00017534,2]
[380961264,1755912792095,-699.23,0.00017534,2]
[380961265,1755912792104,-442.39,0.00017534,2]
[380961266,1755912792113,-627.55,0.00017534,2]
[380961267,1755912792123,-901.46,0.00017534,2]
[380961268,1755912792132,-475.41,0.00017534,2]